bitfinex/quotes_ETHUSD_20241124
["timestamp","ask_amount","ask_price","bid_price","bid_amount"]
[1732463229343,3.09394174,3304.7,3303.8,3.18052]
[1732463229508,3.09394174,3304.7,3304.0,2.42129]
[1732463229708,3.09394174,3304.7,3303.8,0.7591]
[1732463229709,0.06788174,3304.7,3303.8,0.7591]
[1732463229942,0.7905,3305.3,3303.9,3.0]
[1732463230094,0.06590444,3305.2,3304.7,2.42073]
[1732463230795,0.06590444,3305.2,3304.4,2.42094]
[1732463231025,3.09147444,3305.2,3304.4,4.84189]
[1732463231244,3.02557,3305.2,3304.5,2.42092]
[1732463231393,0.7905,3305.3,3304.4,2.42094]
[1732463231394,3.47973188,3305.1,3304.4,2.421]
[1732463231601,0.06590444,3305.1,3304.5,2.42091]
[1732463232032,0.06590444,3305.1,3304.6,2.42079]
[1732463232251,0.06590444,3305.1,3304.8,2.42071]
[1732463232403,0.7905,3305.3,3304.6,2.42086]
[1732463232599,0.06590444,3305.0,3304.8,2.42065]
[1732463232803,0.7905,3305.7,3305.0,2.42057]
[1732463233102,0.7905,3306.1,3305.6,2.42009]
[1732463233313,0.7905,3306.1,3305.5,2.4202]
[1732463233519,0.7905,3306.1,3305.3,2.42034]
[1732463233520,1.172015,3306.1,3305.3,2.42034]
[1732463233923,1.172015,3306.1,3305.1,2.42048]
[1732463234121,3.02489,3305.9,3304.9,5.42063]
[1732463234448,3.02507,3305.7,3304.8,5.42068]
[1732463234752,0.55,3305.7,3305.1,2.42044]
[1732463234907,3.5751,3305.7,3305.0,2.42055]
[1732463235107,3.02489,3305.9,3305.1,2.42046]
[1732463235303,4.41695953,3306.1,3305.4,2.42021]
[1732463235304,3.81522,3306.1,3305.4,2.42021]
[1732463235503,3.02452,3306.4,3305.6,2.42007]
[1732463235701,3.02452,3306.4,3305.7,2.42005]
[1732463236007,0.7905,3306.5,3305.4,0.7591]
[1732463236204,3.025,3305.8,3305.1,3.0]
[1732463236508,3.02527,3305.5,3304.6,0.7591]
[1732463236708,0.55,3305.6,3305.0,2.42057]
[1732463237046,3.02539,3305.4,3304.7,5.42078]
[1732463237247,3.461907,3305.5,3304.7,3.0]
[1732463237410,0.436557,3305.5,3304.7,2.42079]
[1732463237609,3.02518,3305.6,3304.8,3.0]
[1732463237848,3.02518,3305.6,3305.0,2.42056]
[1732463238046,0.7905,3305.7,3305.2,2.42041]
[1732463238253,3.02467,3306.2,3305.5,2.42019]
[1732463238455,0.7905,3306.4,3305.5,2.42019]
[1732463238753,3.0247,3306.2,3305.4,3.17936]
[1732463238919,3.0247,3306.2,3304.9,2.4206]
[1732463238920,4.42615942,3306.4,3305.7,2.42002]
[1732463239125,3.02457,3306.3,3305.6,2.42013]
[1732463239351,0.381507,3306.3,3305.7,2.42005]
[1732463239563,0.55,3306.1,3305.5,2.42016]
[1732463239760,0.55,3306.1,3305.7,2.42004]
[1732463239976,0.55,3306.3,3305.7,2.42004]
[1732463240290,0.06459493,3306.0,3305.7,2.42004]
[1732463240434,3.02467,3306.2,3305.3,2.42033]
[1732463240774,3.57502,3305.8,3305.2,2.42042]
[1732463240971,0.06459493,3305.7,3305.2,2.42042]
[1732463241173,0.7905,3305.6,3304.8,2.72328]
[1732463241493,0.7905,3305.6,3304.6,2.72347]
[1732463241494,3.02555,3305.2,3304.6,2.72347]
[1732463241664,3.02596,3304.8,3304.0,2.72389]
[1732463241874,3.02596,3304.8,3303.8,2.72413]
[1732463241875,0.55,3304.9,3304.4,2.72364]
[1732463242045,0.06459493,3304.7,3304.4,2.72364]
[1732463242254,3.02545,3305.3,3304.7,2.72332]
[1732463242555,3.57554,3305.2,3304.5,2.72351]
[1732463243149,0.55,3305.4,3304.4,0.7591]
[1732463243300,0.7905,3304.7,3304.0,3.0]
[1732463243457,0.55,3304.6,3302.9,0.7591]
[1732463243661,0.55,3304.3,3303.7,2.7242]
[1732463244498,0.55,3304.3,3303.5,2.72437]
[1732463244499,0.907633,3304.3,3303.5,2.72437]
[1732463244700,3.02624,3304.5,3303.9,2.724]
[1732463244902,0.55,3304.6,3303.7,3.48329]
[1732463245087,3.57643,3304.3,3303.7,2.72419]
[1732463245404,3.57643,3304.3,3303.3,0.7591]
[1732463245405,3.95276066,3304.3,3303.3,3.48363]
[1732463245605,3.02663,3304.0,3303.3,2.72449]
[1732463245805,3.02628,3304.4,3303.8,2.72406]
[1732463246175,3.02628,3304.4,3303.6,2.72429]
[1732463246176,0.55,3304.1,3303.6,2.72429]
[1732463246379,0.55,3304.3,3303.7,2.72418]
[1732463246699,0.55,3304.3,3302.1,0.1]
[1732463246700,0.55,3304.3,3302.2,2.72543]
[1732463246924,3.02661,3304.1,3302.5,3.0]
[1732463247088,3.02661,3304.1,3303.5,2.72435]
[1732463247704,3.02674,3303.9,3303.3,2.72449]
[1732463248059,0.55,3303.8,3303.3,2.72449]
[1732463248280,3.02691,3303.7,3303.2,0.3]
[1732463248488,3.02691,3303.7,3302.9,3.50917]
[1732463248713,3.02691,3303.7,3303.1,2.72469]
[1732463248914,0.55,3303.8,3303.4,2.7244]
[1732463249079,3.02691,3303.7,3303.0,2.72476]
[1732463249276,3.57687,3303.8,3303.2,2.7246]
[1732463249601,0.55,3303.8,3303.4,2.72443]
[1732463249931,0.55,3303.8,3303.5,2.72437]
[1732463250376,0.55,3303.8,3303.4,2.72443]
[1732463250753,3.81751,3304.3,3303.4,0.272443]
[1732463250915,3.02661,3304.1,3303.5,2.72433]
[1732463251108,3.81751,3304.3,3303.5,2.72433]
[1732463251314,0.7911,3304.3,3303.9,2.72404]
[1732463252052,3.63592457,3304.7,3304.1,2.72383]
[1732463252053,0.60991457,3304.7,3304.1,2.72383]
[1732463252255,3.81701,3304.8,3304.2,2.72378]
[1732463252455,0.61825632,3305.1,3304.7,2.72338]
[1732463252610,0.7911,3305.2,3304.7,2.72338]
[1732463252813,0.7911,3305.2,3304.9,2.72315]
[1732463253033,0.7911,3305.6,3305.0,2.72309]
[1732463253307,0.7911,3305.6,3305.3,2.72287]
[1732463253509,0.7911,3305.6,3304.5,0.81455726]
[1732463253510,0.7911,3305.6,3305.1,2.72305]
[1732463253945,3.81636,3305.6,3304.9,2.7232]
[1732463254251,3.02528,3305.5,3304.9,2.7232]
[1732463254491,0.55,3305.2,3304.7,2.72339]
[1732463254659,0.55,3305.2,3304.1,2.72386]
[1732463254660,0.55,3305.0,3304.1,2.72386]
[1732463254808,3.02608,3304.6,3303.7,3.50848]
[1732463255154,0.85508338,3304.5,3304.1,2.72387]
[1732463255328,0.85508338,3304.5,3304.2,2.72375]
[1732463255648,0.06398338,3304.5,3304.4,2.72364]
[1732463256146,0.7911,3305.2,3304.8,2.7233]
[1732463256349,0.06441879,3305.1,3304.4,2.72361]
[1732463256656,3.02581,3304.9,3304.2,2.72374]
[1732463256859,3.631059,3304.8,3304.2,2.72374]
[1732463257062,3.631059,3304.8,3304.0,2.72393]
[1732463257063,3.02608,3304.6,3304.0,2.72393]
[1732463257353,0.61444988,3304.5,3304.2,2.72378]
[1732463257515,0.61444988,3304.5,3304.0,2.72393]
[1732463257846,0.06444988,3304.5,3304.3,2.72368]
[1732463258160,0.7911,3305.2,3304.3,2.72368]
[1732463258161,0.7911,3305.2,3304.6,2.72344]
[1732463258454,0.06444988,3305.1,3304.8,2.7233]
[1732463258622,0.06444988,3305.1,3304.6,2.72342]
[1732463258821,0.06444988,3305.1,3304.7,2.72335]
[1732463259025,0.06444988,3305.1,3305.0,2.72314]
[1732463259227,0.06444988,3305.1,3304.8,2.72325]
[1732463259412,3.81621,3305.7,3304.8,2.72325]
[1732463259413,3.02534,3305.5,3304.8,2.72325]
[1732463259609,0.06444988,3305.0,3304.8,2.72329]
[1732463259817,3.02552,3305.3,3304.8,2.72329]
[1732463260016,0.06444988,3304.9,3304.4,2.72361]
[1732463260312,0.55,3304.9,3304.4,2.72361]
[1732463260617,0.06444988,3304.8,3304.7,2.72339]
[1732463261049,0.55,3305.3,3304.0,3.0]
[1732463261389,0.7911,3305.4,3303.9,0.7843]
[1732463261390,0.7911,3305.4,3304.1,0.03026062]
[1732463261584,0.06444988,3305.3,3305.0,2.72309]
[1732463262012,0.06444988,3305.3,3305.2,2.72298]
[1732463262513,0.7911,3305.7,3305.2,2.72296]
[1732463262651,0.06444988,3305.3,3305.2,2.72296]
[1732463262985,0.06444988,3305.3,3304.8,2.72328]
[1732463263177,3.57524,3305.6,3305.0,2.72313]
[1732463263487,0.06486951,3305.5,3305.0,2.72313]
[1732463263653,0.06486951,3305.5,3305.0,5.4462]
[1732463263993,0.06486951,3305.5,3305.0,2.72307]
[1732463264185,0.06486951,3305.5,3304.8,2.7233]
[1732463264349,0.06486951,3305.5,3305.0,2.72313]
[1732463264545,0.06486951,3305.5,3305.2,2.72296]
[1732463264805,0.06486951,3305.5,3305.4,2.72281]
[1732463265165,0.55,3305.9,3305.4,2.72281]
[1732463265363,0.06510263,3305.8,3305.4,2.72281]
[1732463265885,0.06510263,3305.8,3305.7,2.72257]
[1732463266050,0.06510263,3305.8,3305.6,2.72263]
[1732463266250,0.7911,3306.0,3305.6,2.72263]
[1732463266477,0.06520621,3305.7,3305.6,2.72263]
[1732463266665,0.7911,3306.0,3305.6,2.72263]
[1732463266866,0.06520621,3305.7,3305.6,2.72263]
[1732463267081,0.7911,3306.0,3305.4,2.72275]
[1732463267293,0.06520621,3305.7,3305.5,2.72266]
[1732463267496,0.7911,3306.0,3305.0,0.81455232]
[1732463267693,0.8114,3306.6,3306.1,2.72219]
[1732463267896,0.8114,3306.6,3306.1,2.72223]
[1732463268192,0.8114,3306.6,3306.3,2.72205]
[1732463268554,0.8114,3306.9,3306.4,2.72195]
[1732463269693,0.8114,3306.9,3306.2,2.72211]
[1732463269895,0.55,3306.6,3305.9,2.72234]
[1732463270188,3.02491,3305.9,3305.3,2.72289]
[1732463270345,0.8114,3305.7,3305.1,2.72306]
[1732463270552,0.06574464,3305.6,3305.4,2.72274]
[1732463270789,0.06574464,3305.6,3305.5,2.72273]
[1732463271788,0.55,3306.2,3305.3,2.72282]
[1732463271968,0.06574464,3306.1,3305.8,2.72243]
[1732463272779,0.06574464,3306.1,3305.6,2.72262]
[1732463272989,0.06574464,3306.1,3305.7,2.72251]
[1732463273332,0.5466667,3306.1,3305.4,2.72278]
[1732463273588,0.5466667,3306.1,3305.6,2.72259]
[1732463273790,0.06574464,3306.1,3305.8,2.72248]
[1732463274086,0.8114,3306.3,3306.0,2.72232]
[1732463274261,3.62613233,3306.8,3306.2,2.72215]
[1732463274462,1.17401323,3306.7,3306.4,2.72192]
[1732463274692,3.02372,3307.2,3306.6,2.72182]
[1732463274693,0.8114,3307.0,3306.6,2.72182]
[1732463274894,0.8114,3307.0,3306.7,2.72174]
[1732463275054,0.8114,3307.0,3306.2,2.72212]
[1732463275259,3.83531,3307.0,3306.2,2.72212]
[1732463275558,0.383531,3306.9,3306.4,2.72193]
[1732463275759,0.55,3306.9,3306.4,2.72193]
[1732463276061,0.8114,3307.0,3306.0,0.03024441]
[1732463276292,0.8114,3307.0,3306.6,2.72182]
[1732463276503,0.383523,3306.9,3306.4,2.72193]
[1732463276791,0.383523,3306.9,3305.7,0.7827]
[1732463276792,0.8114,3307.0,3306.3,2.72205]
[1732463276976,3.83537,3307.0,3306.4,2.72198]
[1732463277203,3.02416,3306.7,3306.1,2.72219]
[1732463277375,3.02416,3306.7,3306.2,2.72215]
[1732463277575,3.57407,3306.8,3306.3,2.72205]
[1732463277770,0.9718857,3306.8,3306.4,2.72196]
[1732463278012,0.4218857,3306.8,3306.5,2.72186]
[1732463278171,0.8114,3307.0,3306.6,2.72181]
[1732463278504,0.8114,3307.0,3306.7,2.72174]
[1732463278677,0.8114,3307.0,3306.6,2.72182]
[1732463279010,0.8114,3307.0,3306.1,0.03024266]
[1732463279011,0.7957,3307.5,3307.0,2.72145]
[1732463279370,0.7957,3307.5,3307.0,2.72142]
[1732463279574,3.405477,3307.4,3306.8,2.72164]
[1732463279770,3.405477,3307.4,3306.6,2.72179]
[1732463280076,6.429077,3307.4,3306.7,2.72169]
[1732463280288,0.7224777,3307.3,3306.7,2.72169]
[1732463280581,3.02377,3307.2,3306.6,2.72176]
[1732463280782,3.01377,3307.2,3306.6,2.72176]
[1732463281112,3.01377,3307.2,3306.4,2.72196]
[1732463281317,3.01377,3307.2,3306.2,0.81]
[1732463281318,0.55,3306.8,3306.2,2.72211]
[1732463281529,0.55,3306.8,3306.4,2.72198]
[1732463281728,0.55,3306.8,3306.3,5.44402]
[1732463281879,0.55,3307.0,3306.5,2.72189]
[1732463282080,0.55,3306.8,3306.3,2.72201]
[1732463282381,0.55,3306.8,3306.4,2.72196]
[1732463282578,0.55,3306.9,3306.5,2.72189]
[1732463282926,0.7957,3307.5,3306.6,0.81]
[1732463283134,0.59399483,3307.6,3307.3,2.72125]
[1732463283277,0.59399483,3307.6,3307.1,2.72139]
[1732463283477,0.59399483,3307.6,3307.2,2.72132]
[1732463283676,0.59399483,3307.6,3307.3,5.44237]
[1732463283879,0.7957,3307.8,3307.2,2.72131]
[1732463284183,3.0233,3307.7,3307.1,2.72141]
[1732463284523,3.61421169,3307.7,3307.1,2.72141]
[1732463284729,3.02344,3307.5,3306.9,2.72157]
[1732463285021,0.0647167,3307.4,3306.9,2.72157]
[1732463285232,0.0647167,3307.4,3307.1,2.72141]
[1732463285393,3.81887,3307.8,3307.2,2.72127]
[1732463285595,3.63803332,3307.7,3307.0,2.72144]
[1732463285909,0.61476332,3307.7,3307.2,2.72132]
[1732463286427,0.61476332,3307.7,3306.6,3.53178]
[1732463286428,0.06476332,3307.7,3307.5,2.72107]
[1732463286625,0.06476332,3307.7,3306.7,3.0]
[1732463286626,0.06476332,3307.7,3307.6,2.721]
[1732463286829,0.06476332,3307.7,3307.6,2.9931]
[1732463287037,0.7748,3308.4,3307.6,0.2721]
[1732463287320,0.7748,3308.4,3308.1,2.72052]
[1732463287525,0.0647426,3308.3,3307.7,2.72091]
[1732463287881,0.7748,3308.1,3307.3,2.72122]
[1732463288183,3.7977,3308.1,3307.3,2.72122]
[1732463288382,3.02327,3307.7,3306.9,2.72157]
[1732463288616,3.02327,3307.7,3307.0,2.72142]
[1732463288815,1.3248,3307.9,3306.8,2.72159]
[1732463289134,0.38625099,3308.0,3306.0,0.8239]
[1732463289135,1.3248,3307.2,3306.6,2.72181]
[1732463289334,3.02403,3306.9,3306.2,2.72212]
[1732463289626,3.458672,3307.1,3306.2,2.72212]
[1732463289847,3.458672,3307.1,3305.7,2.72248]
[1732463289848,3.0246,3306.3,3305.7,2.72248]
[1732463289985,3.0246,3306.3,3305.6,3.54649]
[1732463290187,3.57443,3306.4,3305.6,0.8239]
[1732463290544,0.55,3306.2,3305.3,2.72282]
[1732463290860,0.55,3306.2,3305.5,2.72267]
[1732463291030,3.86441332,3306.3,3305.1,0.8239]
[1732463291031,0.7748,3306.3,3306.0,2.72228]
[1732463291231,0.06505332,3306.1,3306.0,2.72226]
[1732463291397,3.79899,3306.7,3305.9,3.5463]
[1732463291398,0.7748,3306.7,3305.9,3.5463]
[1732463291600,0.61721762,3307.4,3305.9,3.5463]
[1732463291601,1.3248,3307.0,3305.9,0.8239]
[1732463291938,1.3248,3307.0,3306.0,2.72232]
[1732463291939,3.02414,3306.8,3306.0,2.72232]
[1732463292231,3.02376,3307.2,3306.7,2.72174]
[1732463292401,0.7748,3307.3,3306.7,2.72174]
[1732463292605,0.7748,3307.3,3306.8,2.72158]
[1732463293133,0.7748,3307.7,3306.8,2.72163]
[1732463293287,3.02337,3307.6,3306.7,2.72166]
[1732463293624,0.379817,3307.5,3306.8,2.72158]
[1732463293782,0.7748,3307.7,3307.1,2.72133]
[1732463293986,3.02343,3307.5,3306.9,2.72154]
[1732463294186,0.7748,3307.7,3307.0,2.72148]
[1732463294587,0.61619154,3307.9,3307.0,2.72148]
[1732463294588,0.61619154,3307.9,3307.0,0.272148]
[1732463294793,0.61619154,3307.9,3307.4,2.72111]
[1732463295019,3.63928154,3307.9,3307.3,2.72122]
[1732463295189,3.63928154,3307.9,3307.0,0.272148]
[1732463295190,3.63928154,3307.9,3307.0,2.993618]
[1732463295390,3.0233,3307.7,3307.1,2.72135]
[1732463295733,0.7748,3308.1,3307.5,2.72102]
[1732463296135,0.7748,3308.1,3307.3,3.54514]
[1732463296438,0.7748,3308.1,3307.5,2.72108]
[1732463296643,0.7748,3308.1,3307.7,2.72089]
[1732463296800,0.7748,3308.1,3307.8,2.72083]
[1732463297130,0.7748,3308.1,3307.5,2.72105]
[1732463297305,0.7748,3308.1,3307.7,2.72085]
[1732463298200,0.59281984,3308.4,3307.7,2.72085]
[1732463298396,0.59281984,3308.4,3308.0,2.72062]
[1732463298622,3.61544984,3308.4,3307.9,2.72075]
[1732463298822,0.59281984,3308.4,3308.1,2.72057]
[1732463299201,3.02277,3308.3,3307.5,2.72107]
[1732463299397,0.59281984,3308.4,3307.8,2.72078]
[1732463299624,0.7748,3308.5,3307.3,0.8239]
[1732463299824,0.065012,3308.4,3307.9,2.72069]
[1732463300041,0.065012,3308.4,3308.0,2.72065]
[1732463300265,0.065012,3308.4,3308.1,2.72056]
[1732463300451,0.065012,3308.4,3308.0,2.72066]
[1732463300777,0.065012,3308.4,3308.3,2.72043]
[1732463301143,3.79687,3309.0,3308.5,2.72024]
[1732463301339,0.7748,3309.0,3308.3,2.72043]
[1732463301660,3.02225,3308.8,3308.2,2.72049]
[1732463301870,0.61250852,3309.2,3307.7,2.72092]
[1732463302172,0.7748,3308.3,3307.8,2.72083]
[1732463302326,1.154542,3308.3,3307.8,2.72083]
[1732463302528,3.7975,3308.3,3307.6,2.72095]
[1732463303027,3.7975,3308.3,3307.4,3.545]
[1732463303028,3.02289,3308.1,3307.4,3.545]
[1732463303224,3.02297,3308.0,3307.4,3.545]
[1732463303463,0.55,3307.8,3306.9,2.72154]
[1732463303668,3.02332,3307.7,3307.1,2.72139]
[1732463303959,3.02332,3307.7,3307.1,2.72141]
[1732463304164,0.55,3307.6,3306.9,2.72154]
[1732463304366,0.55,3307.6,3306.8,2.72166]
[1732463304524,3.79789,3307.9,3307.3,2.72123]
[1732463304728,3.79789,3307.9,3307.3,5.44241]
[1732463304964,0.7748,3307.9,3307.4,2.7211]
[1732463305767,0.55,3307.8,3307.3,2.72118]
[1732463306072,0.55,3307.8,3307.2,2.72126]
[1732463306276,0.55,3307.8,3306.5,5.72187]
[1732463306450,3.8006,3307.1,3306.5,5.72187]
[1732463306650,3.02404,3306.9,3306.1,2.72217]
[1732463306868,3.57412,3306.8,3306.0,3.49556]
[1732463307043,0.55,3306.6,3305.7,0.7791]
[1732463307368,3.57425,3306.6,3306.0,2.72225]
[1732463307527,0.55,3306.9,3305.8,2.72248]
[1732463307728,0.55,3306.9,3306.4,2.72194]
[1732463308156,0.55,3307.0,3306.4,2.72194]
[1732463308743,3.57389,3307.0,3306.2,2.72213]
[1732463308939,0.985069,3307.0,3305.9,3.0]
[1732463309233,0.59550008,3307.4,3305.9,3.0]
[1732463309234,0.55,3306.6,3306.1,2.72223]
[1732463309434,0.7953,3306.8,3306.2,2.7221]
[1732463309630,0.55,3306.8,3306.2,2.7221]
[1732463309842,3.02363,3307.3,3306.1,3.50134]
[1732463310039,3.02363,3307.3,3306.4,2.72193]
[1732463310274,3.02383,3307.1,3306.4,2.72192]
[1732463310443,3.02391,3307.0,3306.4,2.72199]
[1732463310642,3.024,3306.9,3306.3,5.72206]
[1732463311063,3.02435,3306.5,3305.8,3.50157]
[1732463311240,0.44144301,3307.3,3305.8,3.50157]
[1732463311241,1.3453,3306.6,3306.1,2.72217]
[1732463311593,1.3453,3306.6,3306.2,2.72214]
[1732463311750,1.3453,3306.6,3306.0,3.0]
[1732463311952,3.02436,3306.5,3306.0,3.0]
[1732463312356,0.55,3306.3,3306.0,3.0]
[1732463312677,0.55,3306.3,3305.5,3.50179]
[1732463312885,0.06234178,3306.2,3305.5,0.7791]
[1732463313034,0.06234178,3306.2,3306.1,3.50134]
[1732463313236,0.7953,3307.1,3306.7,2.72173]
[1732463313474,0.06234178,3307.0,3306.9,2.72156]
[1732463313846,0.7953,3307.5,3306.9,2.72156]
[1732463314076,0.7953,3307.8,3307.1,2.72139]
[1732463314246,0.7953,3307.2,3305.5,2.72272]
[1732463314457,3.02399,3306.9,3306.1,2.72221]
[1732463314783,3.08617178,3307.1,3306.1,2.72218]
[1732463314955,3.81902,3307.2,3306.4,2.72192]
[1732463315135,3.81902,3307.2,3306.4,5.44384]
[1732463315336,3.81902,3307.2,3306.7,2.72174]
[1732463315337,0.7953,3307.2,3306.7,2.72174]
[1732463315558,0.06234178,3307.1,3306.7,2.72174]
[1732463315978,0.06234178,3307.1,3306.5,2.72189]
[1732463316476,0.06234178,3307.1,3306.7,2.72173]
[1732463316676,0.06234178,3307.1,3306.9,2.72158]
[1732463316848,0.06234178,3307.1,3306.6,0.7711]
[1732463317041,0.815,3307.5,3306.9,2.72153]
[1732463317241,0.06234178,3307.4,3306.9,2.993683]
[1732463317460,0.06234178,3307.4,3306.9,2.72153]
[1732463317676,3.02363,3307.3,3306.7,2.72174]
[1732463317894,3.02381,3307.1,3306.5,2.72188]
[1732463318049,0.815,3307.0,3306.0,0.7711]
[1732463318405,0.06234178,3307.0,3306.9,2.72158]
[1732463318761,0.815,3307.7,3307.2,2.72126]
[1732463318965,3.02266,3308.4,3306.8,0.03023705]
[1732463319173,3.02263,3308.4,3307.7,2.7209]
[1732463319459,0.302266,3308.3,3307.8,2.72081]
[1732463319646,0.302266,3308.3,3307.4,0.7711]
[1732463319647,3.02284,3308.2,3307.6,2.72094]
[1732463319851,3.02284,3308.2,3307.6,2.72098]
[1732463320253,3.02284,3308.2,3307.7,2.7209]
[1732463320457,3.0229,3308.1,3307.5,2.72103]
[1732463321067,0.815,3307.9,3307.0,2.72143]
[1732463321275,3.02341,3307.6,3306.7,2.72171]
[1732463321577,0.302341,3307.5,3306.7,2.72171]
[1732463321874,3.325841,3307.5,3306.9,2.72153]
[1732463322291,3.325801,3307.5,3306.9,2.72153]
[1732463322490,0.55,3306.7,3305.5,2.72268]
[1732463322690,3.02468,3306.2,3305.5,2.72268]
[1732463323286,3.8398,3306.0,3305.3,2.72286]
[1732463323455,0.815,3306.0,3305.5,2.72273]
[1732463324287,3.83929,3306.6,3305.3,0.272286]
[1732463324466,3.02444,3306.4,3305.8,2.72243]
[1732463324661,0.815,3306.6,3305.8,2.72243]
[1732463324893,0.815,3306.6,3305.9,2.7224]
[1732463325099,3.8393,3306.6,3305.9,2.72233]
[1732463325312,0.815,3306.6,3305.7,0.7711]
[1732463325588,0.815,3306.6,3305.7,2.72255]
[1732463325589,3.0245,3306.4,3305.7,2.72255]
[1732463325938,0.815,3306.6,3305.9,2.72235]
[1732463325939,3.83932,3306.6,3305.9,2.72235]
[1732463326199,3.02379,3307.2,3306.4,2.72197]
[1732463326200,3.82561,3307.0,3306.4,2.72197]
[1732463326399,3.82561,3307.0,3306.5,0.272197]
[1732463326597,3.82561,3307.0,3306.4,2.72197]
[1732463327100,3.02421,3306.7,3306.1,2.72223]
[1732463327399,3.02408,3306.8,3306.2,2.72212]
[1732463328659,3.02408,3306.8,3306.1,2.72222]
[1732463328857,3.02416,3306.7,3306.1,2.72222]
[1732463329060,3.02441,3306.5,3305.9,3.0]
[1732463329263,3.48626597,3307.3,3305.6,3.0]
[1732463329264,3.82623,3306.3,3305.6,3.0]
[1732463329486,3.82623,3306.3,3305.4,2.72278]
[1732463329487,3.02472,3306.1,3305.5,2.72269]
[1732463329923,0.06001044,3306.0,3305.6,2.72263]
[1732463330234,3.02462,3306.2,3305.6,2.72263]
[1732463330392,0.05981822,3306.1,3305.7,2.72255]
[1732463330591,0.05981822,3306.1,3305.5,2.72273]
[1732463330938,0.05981822,3306.0,3305.9,2.72234]
[1732463331292,0.8017,3306.3,3305.9,2.72234]
[1732463331498,0.05981822,3306.0,3305.7,2.72253]
[1732463331695,0.8017,3306.3,3305.8,2.72246]
[1732463331901,0.05981822,3305.9,3305.8,2.72246]
[1732463332106,3.82625,3306.3,3305.5,2.7227]
[1732463332303,0.05978705,3305.9,3305.5,2.7227]
[1732463332535,3.02484,3306.0,3305.0,0.7582]
[1732463332738,0.05981302,3305.8,3305.3,2.72286]
[1732463333009,3.02491,3305.9,3303.9,2.82403]
[1732463333010,3.02526,3305.5,3304.6,0.7582]
[1732463333228,3.0254,3305.4,3304.9,3.0]
[1732463333472,0.05963116,3305.3,3304.9,3.0]
[1732463333733,0.05963116,3305.3,3305.0,3.0]
[1732463334098,0.8017,3305.9,3305.0,3.0]
[1732463334311,0.05764345,3305.2,3305.1,2.723]
[1732463334532,3.82666,3305.9,3305.1,2.723]
[1732463334697,0.05764345,3305.2,3305.1,5.723]
[1732463334900,3.025,3305.8,3305.1,5.72299]
[1732463335208,3.025,3305.8,3304.9,2.72319]
[1732463335209,3.02513,3305.7,3304.9,2.72322]
[1732463335518,3.02525,3305.6,3305.0,5.72314]
[1732463335917,0.05756549,3305.5,3305.0,5.72314]
[1732463336118,0.05756549,3305.5,3305.2,2.72292]
[1732463336538,3.8266,3305.9,3305.2,2.72292]
[1732463336708,3.8266,3305.9,3304.8,3.0]
[1732463336709,0.05705623,3305.4,3305.0,2.72309]
[1732463336894,0.05705623,3305.4,3305.1,3.0]
[1732463337095,3.02542,3305.4,3304.9,3.0]
[1732463337316,0.05705623,3305.3,3304.9,3.0]
[1732463337752,0.05705623,3305.3,3304.9,5.72317]
[1732463337960,0.05705623,3305.3,3304.9,3.0]
[1732463338116,3.02528,3305.5,3304.9,3.0]
[1732463338117,3.02522,3305.6,3304.9,5.72322]
[1732463338324,3.02535,3305.4,3304.9,5.72322]
[1732463338928,0.05701465,3305.3,3304.9,5.72322]
[1732463339454,3.02535,3305.4,3304.9,5.72322]
[1732463339658,0.05700945,3305.3,3304.9,5.72322]
[1732463340025,3.02522,3305.6,3304.9,5.72322]
[1732463340223,3.02535,3305.4,3304.8,5.72329]
[1732463340620,0.05510914,3305.3,3304.8,5.72329]
[1732463341057,0.05510914,3305.3,3305.2,2.72298]
[1732463341222,3.025,3305.8,3305.2,2.995278]
[1732463341422,0.05506235,3305.7,3305.2,2.72298]
[1732463341622,0.8017,3305.9,3305.4,2.7228]
[1732463341822,0.05506235,3305.8,3305.4,2.7228]
[1732463342023,0.05506235,3305.8,3305.3,0.272298]
[1732463342219,0.05506235,3305.8,3305.3,2.995188]
[1732463342454,0.05506235,3305.8,3305.3,2.72289]
[1732463342831,0.05506235,3305.8,3305.3,5.44573]
[1732463343026,0.05506235,3305.8,3305.4,2.72279]
[1732463343225,0.05506235,3305.8,3304.8,5.72328]
[1732463343528,0.8017,3306.4,3306.0,2.72227]
[1732463343726,0.8017,3306.4,3305.8,5.44484]
[1732463343922,0.0552027,3306.3,3305.8,2.72242]
[1732463344323,0.0552027,3306.3,3306.2,2.72215]
[1732463344778,0.0552027,3306.3,3306.1,2.72222]
[1732463344936,3.02436,3306.5,3305.9,2.72234]
[1732463345136,0.05521829,3306.2,3305.9,2.72234]
[1732463345449,3.02438,3306.5,3305.9,2.72234]
[1732463345651,0.05521829,3306.4,3305.9,2.72234]
[1732463345862,3.02455,3306.3,3305.6,2.72263]
[1732463346175,0.8017,3306.7,3306.2,2.72214]
[1732463346675,0.8213,3307.0,3306.5,2.72189]
[1732463347363,0.8213,3307.0,3306.3,2.72204]
[1732463347364,3.8452,3307.0,3306.3,2.72204]
[1732463347537,0.8213,3307.0,3306.6,2.72182]
[1732463347739,0.8213,3307.0,3306.7,2.7217]
[1732463347942,3.02364,3307.3,3306.6,2.72182]
[1732463348280,0.36138497,3307.1,3306.8,2.72161]
[1732463348452,3.48587597,3307.7,3307.1,2.72134]
[1732463348453,3.02329,3307.7,3307.1,2.72134]
[1732463348655,0.59353294,3307.6,3307.1,2.72134]
[1732463348972,3.02308,3307.9,3307.1,2.72139]